[Event "95th Caplin Hastings Congress"]
[Site "Hastings"]
[Date "2020.01.04"]
[Round "8.11"]
[White "Swayams, Mishra"]
[Black "Lehaci, Miruna-Daria"]
[Result "1-0"]
[ECO "A20"]
[WhiteElo "2479"]
[BlackElo "2214"]
[Annotator "ChessBase"]
[PlyCount "79"]
[EventDate "2019.12.28"]
[EventType "swiss"]
[EventCountry "ENG"]
[SourceTitle "playchess.com"]
[Source "ChessBase"]
[SourceQuality "1"]
[TimeControl "40/6600+30:3000+30"]

1. c4 {[%emt 0:09:39]} e5 {[%emt 0:10:04]} 2. g3 {[%emt 0:00:09]} Nf6 {[%emt 0:00:24]} 3. Bg2 {[%emt 0:00:10]} c6 {[%emt 0:00:04]} 4. Nf3 {[%emt 0:00:24]} e4 {[%emt 0:01:07]} 5. Nd4 {[%emt 0:00:08]} Bc5 {[%emt 0:03:33]} 6. Nb3 {[%emt 0:00:28]} Bb6 {[%emt 0:00:45]} 7. c5 {[%emt 0:00:26]} Bc7 {[%emt 0:02:01]} 8. Nc3 {[%emt 0:00:06]} d5 {[%emt 0:02:31]} 9. cxd6 {[%emt 0:00:16]} Bxd6 {[%emt 0:02:51]} 10. Qc2 {[%emt 0:07:16]} O-O {[%emt 0:08:08]} 11. Nxe4 {[%emt 0:00:57]} Nxe4 {[%emt 0:00:16]} 12. Bxe4 {[%emt 0:03:59]} f5 {[%emt 0:04:48]} 13. Bd3 {[%emt 0:00:12]} Qf6 {[%emt 0:02:57]} 14. f4 {[%emt 0:04:07]} Kh8 {[%emt 0:03:10]} 15. e3 {[%emt 0:04:27]} a5 {[%emt 0:06:22]} 16. O-O {[%emt 0:03:59]} Na6 {[%emt 0:07:36]} 17. Qc3 {[%emt 0:05:24]} Qf7 {[%emt 0:17:07]} 18. Nd4 {[%emt 0:12:46]} Nb4 {[%emt 0:14:54]} 19. Bc4 {[%emt 0:01:14]} Qe8 {[%emt 0:01:06]} 20. b3 {[%emt 0:03:03]} Be7 {[%emt 0:03:31]} 21. Bb2 {[%emt 0:05:08]} Bf6 {[%emt 0:00:26]} 22. a3 {[%emt 0:02:28]} Na6 {[%emt 0:04:54]} 23. Qc2 {[%emt 0:01:41]} Nc5 {[%emt 0:01:08]} 24. Rae1 {[%emt 0:01:55]} Ne4 {[%emt 0:01:24]} 25. Be2 {[%emt 0:06:44]} Qg6 {[%emt 0:03:08]} 26. Bf3 {[%emt 0:02:28]} c5 {[%emt 0:04:32]} 27. Bxe4 {[%emt 0:21:21]} fxe4 {[%emt 0:03:16]} 28. f5 {[%emt 0:03:45]} Qh5 {[%emt 0:03:50]} 29. Qxc5 {[%emt 0:00:12]} Bd7 {[%emt 0:00:20]} 30. Bc3 {[%emt 0:03:02]} Rf7 {[%emt 0:03:12]} 31. Rf2 {[%emt 0:03:04]} Bxd4 {[%emt 0:00:37]} 32. Qxd4 {[%emt 0:00:45]} Re8 {[%emt 0:02:26]} 33. Rf4 {[%emt 0:04:43]} Bc6 {[%emt 0:01:45]} 34. a4 {[%emt 0:02:21]} Kg8 {[%emt 0:00:45]} 35. Ref1 {[%emt 0:00:47]} Qg5 {[%emt 0:00:27]} 36. Bxa5 {[%emt 0:00:59]} Ra8 {[%emt 0:00:48]} 37. Bc3 {[%emt 0:00:08]} Rd8 {[%emt 0:00:10]} 38. Qb6 {[%emt 0:02:19]} Rdf8 {[%emt 0:00:40]} 39. Qc5 {[%emt 0:01:57]} Bd7 {[%emt 0:00:05]} 40. Qc4 {[%emt 0:01:56]} 1-0

[Event "95th Caplin Hastings Congress"]
[Site "Hastings"]
[Date "2020.01.04"]
[Round "8.12"]
[White "Brozel, Sacha"]
[Black "Merry, Alan B"]
[Result "0-1"]
[ECO "A37"]
[WhiteElo "2150"]
[BlackElo "2423"]
[Annotator "NA"]
[PlyCount "67"]
[EventDate "2019.12.28"]
[EventType "swiss"]
[EventCountry "ENG"]
[SourceTitle "playchess.com"]
[Source "ChessBase"]
[SourceQuality "1"]
[TimeControl "40/6600+30:3000+30"]

1. c4 {[%emt 0:12:14]} c5 {[%emt 0:09:34]} 2. g3 {[%emt 0:00:08]} g6 {[%emt 0:00:02]} 3. Bg2 {[%emt 0:00:07]} Bg7 {[%emt 0:00:03]} 4. Nc3 {[%emt 0:00:08]} Nc6 {[%emt 0:00:02]} 5. Nf3 {[%emt 0:00:11]} d6 {[%emt 0:00:11]} 6. O-O {[%emt 0:01:10]} Bf5 {[%emt 0:00:01]} 7. d3 {[%emt 0:03:47]} Qd7 {[%emt 0:00:04]} 8. Nd5 {[%emt 0:03:40]} Nf6 {[%emt 0:00:40]} 9. Bd2 {[%emt 0:01:35]} O-O {[%emt 0:05:28]} 10. Bc3 {[%emt 0:03:42]} Nxd5 {[%emt 0:15:17]} 11. cxd5 {[%emt 0:04:06]} Nd4 {[%emt 0:00:03]} 12. Nh4 {[%emt 0:11:55]} Bg4 {[%emt 0:09:54]} 13. f3 {[%emt 0:00:58]} Bh3 {[%emt 0:06:27]} 14. e3 {[%emt 0:01:03]} Bxg2 {[%emt 0:06:15]} 15. Nxg2 {[%emt 0:03:42]} Nb5 {[%emt 0:03:11]} 16. Bxg7 {[%emt 0:00:42]} Kxg7 {[%emt 0:00:05]} 17. d4 {[%emt 0:22:24]} Kg8 {[%emt 0:13:29]} 18. a4 {[%emt 0:06:08]} Nc7 {[%emt 0:00:02]} 19. e4 {[%emt 0:02:02]} Rfd8 {[%emt 0:03:09]} 20. Ne3 {[%emt 0:02:32]} Rac8 {[%emt 0:04:47]} 21. Rc1 {[%emt 0:10:35]} Na6 {[%emt 0:03:01]} 22. b3 {[%emt 0:03:53]} b5 {[%emt 0:07:02]} 23. dxc5 {[%emt 0:01:55]} Nxc5 {[%emt 0:02:12]} 24. a5 {[%emt 0:01:12]} b4 {[%emt 0:06:45]} 25. Nc4 {[%emt 0:00:55]} Qb5 {[%emt 0:02:53]} 26. Rf2 {[%emt 0:10:04]} Rc7 {[%emt 0:02:00]} 27. Ra2 {[%emt 0:03:57]} Rdc8 {[%emt 0:00:30]} 28. Nb2 {[%emt 0:00:49]} Nxb3 {[%emt 0:10:21]} 29. Rxc7 {[%emt 0:00:32]} Rxc7 {[%emt 0:00:03]} 30. Qxb3 {[%emt 0:00:53]} Rc3 {[%emt 0:02:16]} 31. Qa4 {[%emt 0:05:02]} Rc1+ {[%emt 0:02:41]} 32. Nd1 {[%emt 0:01:18]} Qd3 {[%emt 0:01:37]} 33. Kg2 {[%emt 0:01:48]} b3 {[%emt 0:01:38]} 34. Nf2 {[%emt 0:00:52]} 0-1

[Event "95th Caplin Hastings Congress"]
[Site "Hastings"]
[Date "2020.01.04"]
[Round "8.13"]
[White "Cherniaev, Alexander"]
[Black "Balaji, Aaravamudhan"]
[Result "1-0"]
[ECO "A03"]
[WhiteElo "2427"]
[BlackElo "2095"]
[Annotator "NA"]
[PlyCount "79"]
[EventDate "2019.12.28"]
[EventType "swiss"]
[EventCountry "ENG"]
[SourceTitle "playchess.com"]
[Source "ChessBase"]
[SourceQuality "1"]
[TimeControl "40/6600+30:3000+30"]

1. b3 {[%emt 0:09:33]} d5 {[%emt 0:09:40]} 2. Bb2 {[%emt 0:00:07]} c5 {[%emt 0:00:05]} 3. e3 {[%emt 0:00:39]} e6 {[%emt 0:00:05]} 4. f4 {[%emt 0:00:54]} Nf6 {[%emt 0:00:07]} 5. Nf3 {[%emt 0:00:06]} Nc6 {[%emt 0:00:07]} 6. Bb5 {[%emt 0:03:09]} Bd6 {[%emt 0:01:31]} 7. Bxc6+ {[%emt 0:00:10]} bxc6 {[%emt 0:00:02]} 8. O-O {[%emt 0:09:26]} O-O {[%emt 0:00:21]} 9. c4 {[%emt 0:11:49]} Qe7 {[%emt 0:06:33]} 10. Ne5 {[%emt 0:10:52]} Bb7 {[%emt 0:02:33]} 11. d3 {[%emt 0:10:51]} Nd7 {[%emt 0:05:13]} 12. Nxd7 {[%emt 0:01:26]} Qxd7 {[%emt 0:00:01]} 13. Nc3 {[%emt 0:02:32]} d4 {[%emt 0:10:09]} 14. Na4 {[%emt 0:05:17]} Rfd8 {[%emt 0:07:23]} 15. Qf3 {[%emt 0:02:12]} Qc7 {[%emt 0:12:50]} 16. Rae1 {[%emt 0:05:55]} Rd7 {[%emt 0:07:06]} 17. Re2 {[%emt 0:06:10]} Rad8 {[%emt 0:02:00]} 18. Ba3 {[%emt 0:00:23]} e5 {[%emt 0:11:16]} 19. exd4 {[%emt 0:04:36]} cxd4 {[%emt 0:02:09]} 20. Bxd6 {[%emt 0:00:16]} Rxd6 {[%emt 0:00:47]} 21. fxe5 {[%emt 0:01:28]} Rg6 {[%emt 0:00:02]} 22. Nc5 {[%emt 0:00:13]} Bc8 {[%emt 0:00:31]} 23. Re4 {[%emt 0:04:51]} a5 {[%emt 0:02:00]} 24. a3 {[%emt 0:02:46]} f5 {[%emt 0:06:10]} 25. exf6 {[%emt 0:00:28]} Rxf6 {[%emt 0:00:03]} 26. Rf4 {[%emt 0:02:24]} Rdf8 {[%emt 0:00:12]} 27. Rxf6 {[%emt 0:00:08]} Rxf6 {[%emt 0:00:02]} 28. Qe4 {[%emt 0:00:12]} Rxf1+ {[%emt 0:00:20]} 29. Kxf1 {[%emt 0:00:02]} Kf7 {[%emt 0:00:12]} 30. h3 {[%emt 0:08:49]} Qd6 {[%emt 0:01:40]} 31. b4 {[%emt 0:00:03]} g6 {[%emt 0:01:09]} 32. Qf3+ {[%emt 0:02:24]} Ke8 {[%emt 0:07:43]} 33. Ne4 {[%emt 0:00:49]} Qe7 {[%emt 0:00:02]} 34. Qf6 {[%emt 0:01:50]} axb4 {[%emt 0:01:07]} 35. Qxc6+ {[%emt 0:01:54]} Kd8 {[%emt 0:00:28]} 36. Qb6+ {[%emt 0:00:43]} Ke8 {[%emt 0:00:02]} 37. axb4 {[%emt 0:01:55]} Qf7+ {[%emt 0:00:46]} 38. Qf6 {[%emt 0:00:33]} Qxf6+ {[%emt 0:00:09]} 39. Nxf6+ {[%emt 0:00:06]} Ke7 {[%emt 0:00:04]} 40. Nxh7 {[%emt 0:01:21]} 1-0

[Event "95th Caplin Hastings Congress"]
[Site "Hastings"]
[Date "2020.01.04"]
[Round "8.14"]
[White "Vaishali R"]
[Black "Sucikova, Svetlana"]
[Result "1-0"]
[ECO "B15"]
[WhiteElo "2386"]
[BlackElo "2160"]
[Annotator "ChessBase"]
[PlyCount "105"]
[EventDate "2019.12.28"]
[EventType "swiss"]
[EventCountry "ENG"]
[SourceTitle "playchess.com"]
[Source "ChessBase"]
[SourceQuality "1"]
[TimeControl "40/6600+30:3000+30"]

1. e4 {[%emt 0:09:33]} c6 {[%emt 0:10:22]} 2. d4 {[%emt 0:00:13]} d5 {[%emt 0:00:10]} 3. Nd2 {[%emt 0:00:04]} dxe4 {[%emt 0:00:40]} 4. Nxe4 {[%emt 0:00:06]} Nf6 {[%emt 0:01:13]} 5. Nxf6+ {[%emt 0:00:11]} exf6 {[%emt 0:00:32]} 6. c3 {[%emt 0:00:21]} Bd6 {[%emt 0:00:48]} 7. Bd3 {[%emt 0:00:07]} Qc7 {[%emt 0:02:14]} 8. Ne2 {[%emt 0:02:03]} Bg4 {[%emt 0:02:46]} 9. Qc2 {[%emt 0:04:46]} Nd7 {[%emt 0:03:16]} 10. Be3 {[%emt 0:10:51]} Bh5 {[%emt 0:14:02]} 11. Ng3 {[%emt 0:07:11]} Bg6 {[%emt 0:04:24]} 12. Nf5 {[%emt 0:02:55]} Bxf5 {[%emt 0:08:45]} 13. Bxf5 {[%emt 0:00:04]} g6 {[%emt 0:00:27]} 14. Bd3 {[%emt 0:07:05]} O-O {[%emt 0:09:44]} 15. h4 {[%emt 0:02:42]} Rfe8 {[%emt 0:00:53]} 16. h5 {[%emt 0:01:45]} Nf8 {[%emt 0:07:34]} 17. hxg6 {[%emt 0:07:07]} fxg6 {[%emt 0:00:24]} 18. Bc4+ {[%emt 0:01:09]} Kg7 {[%emt 0:02:20]} 19. O-O-O {[%emt 0:01:00]} Bf4 {[%emt 0:01:09]} 20. Rh3 {[%emt 0:02:10]} Re7 {[%emt 0:08:26]} 21. Qd2 {[%emt 0:13:11]} Bxe3 {[%emt 0:00:31]} 22. fxe3 {[%emt 0:00:07]} Rae8 {[%emt 0:01:15]} 23. Rf1 {[%emt 0:06:22]} Qd6 {[%emt 0:08:25]} 24. Qf2 {[%emt 0:10:29]} Re4 {[%emt 0:02:53]} 25. Bd3 {[%emt 0:02:10]} Rg4 {[%emt 0:06:54]} 26. e4 {[%emt 0:03:19]} Qe7 {[%emt 0:01:48]} 27. Re3 {[%emt 0:16:13]} Ne6 {[%emt 0:07:53]} 28. g3 {[%emt 0:06:07]} Nf8 {[%emt 0:03:02]} 29. Rf3 {[%emt 0:02:38]} Nd7 {[%emt 0:01:49]} 30. Rf4 {[%emt 0:00:22]} Rxf4 {[%emt 0:04:19]} 31. gxf4 {[%emt 0:00:03]} c5 {[%emt 0:02:19]} 32. d5 {[%emt 0:01:04]} c4 {[%emt 0:00:26]} 33. Bc2 {[%emt 0:00:03]} b6 {[%emt 0:01:56]} 34. Rh1 {[%emt 0:01:45]} Nc5 {[%emt 0:02:12]} 35. Qh2 {[%emt 0:01:01]} Kg8 {[%emt 0:00:19]} 36. e5 {[%emt 0:00:53]} f5 {[%emt 0:00:48]} 37. Qg3 {[%emt 0:00:43]} Qd7 {[%emt 0:00:45]} 38. Rd1 {[%emt 0:00:27]} Kh8 {[%emt 0:00:24]} 39. Qh4 {[%emt 0:00:30]} Qe7 {[%emt 0:00:45]} 40. Qh3 {[%emt 0:00:36]} Rd8 {[%emt 0:00:25]} 41. Qe3 {[%emt 0:01:34]} Nb7 {[%emt 0:05:45]} 42. Qd4 {[%emt 0:01:32]} Qc5 {[%emt 0:03:04]} 43. d6 {[%emt 0:06:38]} Kg7 {[%emt 0:04:54]} 44. Qd2 {[%emt 0:04:03]} Rd7 {[%emt 0:01:24]} 45. Qe1 {[%emt 0:04:24]} h6 {[%emt 0:07:22]} 46. Qg3 {[%emt 0:02:28]} Kh7 {[%emt 0:03:11]} 47. Rg1 {[%emt 0:00:48]} Rg7 {[%emt 0:06:35]} 48. Bxf5 {[%emt 0:00:30]} Qxg1+ {[%emt 0:00:09]} 49. Qxg1 {[%emt 0:00:04]} gxf5 {[%emt 0:00:06]} 50. Qd4 {[%emt 0:01:28]} Nc5 {[%emt 0:00:31]} 51. Qxc4 {[%emt 0:00:44]} Rg1+ {[%emt 0:02:56]} 52. Kc2 {[%emt 0:00:17]} Rg2+ {[%emt 0:00:08]} 53. Kd1 {[%emt 0:00:04]} 1-0

[Event "95th Caplin Hastings Congress"]
[Site "Hastings"]
[Date "2020.01.04"]
[Round "8.15"]
[White "Murphy, Conor E"]
[Black "Unnikrishnan, Midhun P"]
[Result "1-0"]
[ECO "C45"]
[WhiteElo "2407"]
[BlackElo "2135"]
[Annotator "ChessBase"]
[PlyCount "111"]
[EventDate "2019.12.28"]
[EventType "swiss"]
[EventCountry "ENG"]
[SourceTitle "playchess.com"]
[Source "ChessBase"]
[SourceQuality "1"]
[TimeControl "40/6600+30:3000+30"]

1. e4 {[%emt 0:09:38]} e5 {[%emt 0:09:40]} 2. Nf3 {[%emt 0:00:14]} Nc6 {[%emt 0:00:06]} 3. d4 {[%emt 0:00:11]} exd4 {[%emt 0:00:06]} 4. Nxd4 {[%emt 0:00:06]} Nf6 {[%emt 0:00:04]} 5. Nxc6 {[%emt 0:00:22]} bxc6 {[%emt 0:00:08]} 6. e5 {[%emt 0:00:07]} Qe7 {[%emt 0:00:09]} 7. Qe2 {[%emt 0:00:07]} Nd5 {[%emt 0:00:06]} 8. c4 {[%emt 0:00:08]} Ba6 {[%emt 0:00:08]} 9. Nd2 {[%emt 0:00:34]} g6 {[%emt 0:01:50]} 10. Nf3 {[%emt 0:00:57]} Bg7 {[%emt 0:00:56]} 11. Bg5 {[%emt 0:03:14]} f6 {[%emt 0:06:35]} 12. exf6 {[%emt 0:00:54]} Qxe2+ {[%emt 0:03:53]} 13. Bxe2 {[%emt 0:00:11]} Nxf6 {[%emt 0:00:08]} 14. O-O-O {[%emt 0:00:41]} O-O-O {[%emt 0:03:11]} 15. Rhe1 {[%emt 0:02:31]} Rde8 {[%emt 0:10:45]} 16. Nd2 {[%emt 0:02:52]} c5 {[%emt 0:08:12]} 17. Bf3 {[%emt 0:01:33]} Bb7 {[%emt 0:02:23]} 18. Bxb7+ {[%emt 0:06:22]} Kxb7 {[%emt 0:00:08]} 19. f3 {[%emt 0:01:11]} d6 {[%emt 0:05:34]} 20. Kc2 {[%emt 0:04:40]} Nd7 {[%emt 0:06:03]} 21. b3 {[%emt 0:14:14]} Ne5 {[%emt 0:23:35]} 22. Re4 {[%emt 0:07:08]} Kc8 {[%emt 0:04:57]} 23. h4 {[%emt 0:06:24]} Kd7 {[%emt 0:03:06]} 24. h5 {[%emt 0:03:19]} Nc6 {[%emt 0:05:02]} 25. h6 {[%emt 0:07:42]} Nb4+ {[%emt 0:02:01]} 26. Kb1 {[%emt 0:00:23]} Bd4 {[%emt 0:01:06]} 27. Rde1 {[%emt 0:06:16]} Rxe4 {[%emt 0:01:15]} 28. Rxe4 {[%emt 0:01:13]} Re8 {[%emt 0:00:40]} 29. Rxe8 {[%emt 0:04:47]} Kxe8 {[%emt 0:00:06]} 30. Ne4 {[%emt 0:00:16]} Nc6 {[%emt 0:05:11]} 31. Kc2 {[%emt 0:03:26]} Nb4+ {[%emt 0:03:36]} 32. Kd2 {[%emt 0:01:13]} Nxa2 {[%emt 0:01:55]} 33. Bf6 {[%emt 0:01:12]} Kf7 {[%emt 0:00:42]} 34. Bd8 {[%emt 0:02:13]} Nb4 {[%emt 0:00:38]} 35. Bxc7 {[%emt 0:01:55]} d5 {[%emt 0:00:06]} 36. Ng5+ {[%emt 0:05:08]} Kg8 {[%emt 0:00:05]} 37. Ne6 {[%emt 0:00:44]} dxc4 {[%emt 0:00:39]} 38. bxc4 {[%emt 0:00:27]} Kf7 {[%emt 0:03:08]} 39. Ng5+ {[%emt 0:02:44]} Kg8 {[%emt 0:00:05]} 40. Bd6 {[%emt 0:14:52]} Nc6 {[%emt 0:03:57]} 41. Ne6 {[%emt 0:53:32]} Kf7 {[%emt 0:51:41]} 42. Nxc5 {[%emt 0:01:59]} Ne5 {[%emt 0:06:49]} 43. Bxe5 {[%emt 0:00:00]} Bxe5 {[%emt 0:00:00]} 44. Kd3 {[%emt 0:00:00]} Bf4 {[%emt 0:00:00]} 45. Ke4 {[%emt 0:00:00]} Bxh6 {[%emt 0:00:00]} 46. Kd5 {[%emt 0:00:00]} Bf4 {[%emt 0:00:00]} 47. Kc6 {[%emt 0:00:00]} Kf6 {[%emt 0:00:00]} 48. Kd7 {[%emt 0:00:00]} Be3 {[%emt 0:00:00]} 49. Nd3 {[%emt 0:00:00]} Kf5 {[%emt 0:00:00]} 50. Kd6 {[%emt 0:00:00]} h5 {[%emt 0:00:00]} 51. c5 {[%emt 0:00:00]} g5 {[%emt 0:00:00]} 52. c6 {[%emt 0:00:00]} Bb6 {[%emt 0:00:00]} 53. Ne5 {[%emt 0:00:00]} g4 {[%emt 0:00:00]} 54. fxg4+ {[%emt 0:00:16]} hxg4 {[%emt 0:00:00]} 55. Nc4 {[%emt 0:00:15]} Bf2 {[%emt 0:00:00]} 56. Kd7 {[%emt 0:00:18]} 1-0

[Event "95th Caplin Hastings Congress"]
[Site "Hastings"]
[Date "2020.01.04"]
[Round "8.17"]
[White "Willow, Jonah B"]
[Black "Thompson, Ian D"]
[Result "1/2-1/2"]
[ECO "C48"]
[WhiteElo "2355"]
[BlackElo "2141"]
[Annotator "NA"]
[PlyCount "115"]
[EventDate "2019.12.28"]
[EventType "swiss"]
[EventCountry "ENG"]
[SourceTitle "playchess.com"]
[Source "ChessBase"]
[SourceQuality "1"]
[TimeControl "40/6600+30:3000+30"]

1. e4 {[%emt 0:09:31]} e5 {[%emt 0:09:40]} 2. Nf3 {[%emt 0:00:12]} Nc6 {[%emt 0:00:12]} 3. Nc3 {[%emt 0:00:21]} Nf6 {[%emt 0:00:15]} 4. Bb5 {[%emt 0:00:05]} Bc5 {[%emt 0:01:33]} 5. O-O {[%emt 0:01:10]} O-O {[%emt 0:00:00]} 6. Nxe5 {[%emt 0:00:18]} Nxe5 {[%emt 0:00:00]} 7. d4 {[%emt 0:00:00]} Bd6 {[%emt 0:00:25]} 8. f4 {[%emt 0:00:00]} Neg4 {[%emt 0:00:27]} 9. e5 {[%emt 0:00:46]} Be7 {[%emt 0:00:56]} 10. Be2 {[%emt 0:03:40]} d6 {[%emt 0:00:20]} 11. exf6 {[%emt 0:00:00]} Nxf6 {[%emt 0:03:08]} 12. f5 {[%emt 0:00:00]} d5 {[%emt 0:05:15]} 13. Bg5 {[%emt 0:01:08]} Re8 {[%emt 0:04:16]} 14. Qd3 {[%emt 0:05:28]} c6 {[%emt 0:01:59]} 15. Rae1 {[%emt 0:01:35]} b5 {[%emt 0:12:48]} 16. Qh3 {[%emt 0:03:51]} a5 {[%emt 0:00:00]} 17. Bd3 {[%emt 0:05:31]} b4 {[%emt 0:12:27]} 18. Na4 {[%emt 0:04:28]} Ba6 $14 {[%emt 0:15:12]} 19. Nc5 {[%emt 0:28:11]} Bxd3 {[%emt 0:00:00]} 20. cxd3 {[%emt 0:08:36]} Bxc5 {[%emt 0:00:00]} 21. dxc5 {[%emt 0:00:00]} Rxe1 {[%emt 0:00:00]} 22. Rxe1 {[%emt 0:00:00]} Qf8 {[%emt 0:00:00]} 23. Bxf6 {[%emt 0:00:00]} gxf6 {[%emt 0:00:00]} 24. Qe3 {[%emt 0:06:49]} Qc8 {[%emt 0:10:36]} 25. Qg3+ {[%emt 0:03:22]} Kh8 {[%emt 0:00:00]} 26. Re7 {[%emt 0:00:23]} Qf8 {[%emt 0:00:00]} 27. Qd6 {[%emt 0:04:06]} Kg7 {[%emt 0:01:18]} 28. Qg3+ {[%emt 0:01:02]} Kh8 {[%emt 0:00:00]} 29. Qd6 {[%emt 0:00:02]} Kg7 {[%emt 0:04:31]} 30. Rd7 {[%emt 0:05:14]} Re8 {[%emt 0:00:00]} 31. Kf2 {[%emt 0:01:10]} Re5 {[%emt 0:04:34]} 32. Rd8 {[%emt 0:16:10]} Rxf5+ {[%emt 0:00:00]} 33. Kg3 {[%emt 0:01:15]} Qxd6+ {[%emt 0:00:00]} 34. cxd6 {[%emt 0:00:05]} d4 {[%emt 0:00:00]} 35. Rc8 {[%emt 0:00:03]} Rd5 {[%emt 0:00:00]} 36. Rxc6 {[%emt 0:01:18]} f5 {[%emt 0:00:00]} 37. Kf4 {[%emt 0:00:42]} Kf6 {[%emt 0:00:00]} 38. d7+ {[%emt 0:06:47]} Ke7 {[%emt 0:00:00]} 39. Rh6 {[%emt 0:00:05]} Kxd7 {[%emt 0:01:44]} 40. Rxh7 {[%emt 0:05:55]} Rc5 {[%emt 0:00:26]} 41. Rxf7+ {[%emt 0:45:33]} Ke6 {[%emt 0:55:45]} 42. Ra7 {[%emt 0:01:21]} Rc2 {[%emt 0:00:30]} 43. Ra6+ {[%emt 0:00:15]} Ke7 {[%emt 0:00:12]} 44. h4 {[%emt 0:07:34]} Rxg2 {[%emt 0:00:00]} 45. h5 {[%emt 0:02:55]} Rxb2 {[%emt 0:00:00]} 46. h6 {[%emt 0:00:00]} Kf7 {[%emt 0:13:45]} 47. Rxa5 {[%emt 0:03:22]} Rd2 {[%emt 0:20:53]} 48. Ra7+ {[%emt 0:00:00]} Kg8 {[%emt 0:07:49]} 49. Rg7+ {[%emt 0:00:00]} Kh8 {[%emt 0:00:00]} 50. Rg3 {[%emt 0:00:00]} Rxa2 {[%emt 0:03:26]} 51. Kxf5 {[%emt 0:00:00]} b3 {[%emt 0:04:28]} 52. Rg6 {[%emt 0:01:44]} Re2 {[%emt 0:02:12]} 53. Rb6 {[%emt 0:00:00]} b2 {[%emt 0:02:09]} 54. Kg6 {[%emt 0:00:00]} Rg2+ {[%emt 0:00:00]} 55. Kf5 {[%emt 0:00:00]} Re2 {[%emt 0:00:00]} 56. Rb7 {[%emt 0:01:18]} Re3 {[%emt 0:00:00]} 57. Rxb2 {[%emt 0:00:00]} Rxd3 {[%emt 0:00:00]} 58. Ke4 {[%emt 0:00:12]} 1/2-1/2

[Event "95th Caplin Hastings Congress"]
[Site "Hastings"]
[Date "2020.01.04"]
[Round "8.18"]
[White "Ryzhkov, Vjacheslav"]
[Black "Grieve, Harry"]
[Result "1/2-1/2"]
[ECO "C00"]
[WhiteElo "2134"]
[BlackElo "2299"]
[Annotator "ChessBase"]
[PlyCount "123"]
[EventDate "2019.12.28"]
[EventType "swiss"]
[EventCountry "ENG"]
[SourceTitle "playchess.com"]
[Source "ChessBase"]
[SourceQuality "1"]
[TimeControl "40/6600+30:3000+30"]

1. e4 {[%emt 0:09:36]} c5 {[%emt 0:10:06]} 2. Nf3 {[%emt 0:00:37]} e6 {[%emt 0:00:07]} 3. g3 {[%emt 0:00:34]} Nc6 {[%emt 0:02:20]} 4. Bg2 {[%emt 0:00:36]} Nf6 {[%emt 0:02:00]} 5. Qe2 {[%emt 0:00:19]} d6 {[%emt 0:00:59]} 6. O-O {[%emt 0:03:06]} Be7 {[%emt 0:01:12]} 7. e5 {[%emt 0:00:39]} dxe5 {[%emt 0:03:17]} 8. Nxe5 {[%emt 0:00:55]} Nd4 {[%emt 0:07:06]} 9. Qd1 {[%emt 0:05:52]} O-O {[%emt 0:04:13]} 10. c3 {[%emt 0:01:11]} Nf5 {[%emt 0:00:00]} 11. d3 {[%emt 0:03:33]} Qc7 {[%emt 0:01:50]} 12. Qe2 {[%emt 0:01:40]} Nd5 {[%emt 0:06:26]} 13. Na3 {[%emt 0:02:04]} Rb8 {[%emt 0:07:31]} 14. Nb5 {[%emt 0:08:48]} Qb6 {[%emt 0:03:29]} 15. a4 {[%emt 0:06:29]} a6 {[%emt 0:01:42]} 16. Na3 {[%emt 0:06:07]} Qc7 {[%emt 0:01:23]} 17. Nc2 {[%emt 0:03:24]} b6 {[%emt 0:09:31]} 18. d4 {[%emt 0:07:11]} Bb7 {[%emt 0:06:43]} 19. Ne3 {[%emt 0:05:32]} cxd4 {[%emt 0:06:12]} 20. Nxf5 {[%emt 0:00:42]} exf5 {[%emt 0:00:20]} 21. cxd4 {[%emt 0:00:42]} Nb4 {[%emt 0:08:59]} 22. Bf4 {[%emt 0:04:22]} Bxg2 {[%emt 0:04:51]} 23. Kxg2 {[%emt 0:01:06]} Rbd8 {[%emt 0:07:27]} 24. Rac1 {[%emt 0:03:46]} Qb7+ {[%emt 0:05:34]} 25. Qf3 {[%emt 0:02:38]} Qxf3+ {[%emt 0:00:08]} 26. Nxf3 {[%emt 0:00:14]} b5 {[%emt 0:05:32]} 27. axb5 {[%emt 0:05:26]} axb5 {[%emt 0:00:06]} 28. Rc7 {[%emt 0:01:45]} Nd5 {[%emt 0:06:40]} 29. Rb7 {[%emt 0:01:00]} b4 {[%emt 0:00:34]} 30. Ra1 {[%emt 0:04:57]} Ra8 {[%emt 0:03:09]} 31. Rxa8 {[%emt 0:01:18]} Rxa8 {[%emt 0:00:01]} 32. Rb8+ {[%emt 0:07:31]} Rxb8 {[%emt 0:00:05]} 33. Bxb8 {[%emt 0:00:05]} f6 {[%emt 0:01:43]} 34. Nd2 {[%emt 0:00:51]} Kf7 {[%emt 0:01:39]} 35. Kf3 {[%emt 0:01:01]} Ke6 {[%emt 0:01:02]} 36. Nc4 {[%emt 0:01:33]} Kd7 {[%emt 0:01:59]} 37. Ke2 {[%emt 0:00:47]} Kc6 {[%emt 0:01:34]} 38. Kd3 {[%emt 0:00:38]} g5 {[%emt 0:00:55]} 39. b3 {[%emt 0:09:45]} Nc3 {[%emt 0:00:31]} 40. Ne3 {[%emt 0:02:15]} Bf8 {[%emt 0:00:33]} 41. Nxf5 {[%emt 0:51:23]} h5 {[%emt 0:06:47]} 42. h4 {[%emt 0:00:00]} Nd1 {[%emt 0:05:03]} 43. f3 {[%emt 0:00:00]} Kd5 {[%emt 0:00:05]} 44. Bc7 {[%emt 0:00:00]} Ke6 {[%emt 0:02:16]} 45. Ne3 {[%emt 0:00:00]} Nxe3 {[%emt 0:00:54]} 46. Kxe3 {[%emt 0:00:00]} gxh4 {[%emt 0:01:56]} 47. gxh4 {[%emt 0:00:00]} Kd5 {[%emt 0:06:09]} 48. Bb6 {[%emt 0:00:00]} Bh6+ {[%emt 0:12:11]} 49. f4 {[%emt 0:00:00]} f5 {[%emt 0:01:12]} 50. Bc5 {[%emt 0:00:00]} Bg7 {[%emt 0:00:08]} 51. Bxb4 {[%emt 0:00:00]} Bxd4+ {[%emt 0:01:22]} 52. Kd3 {[%emt 0:00:00]} Bf2 {[%emt 0:01:39]} 53. Be7 {[%emt 0:00:00]} Bg3 {[%emt 0:04:20]} 54. Ke3 {[%emt 0:00:00]} Be1 {[%emt 0:00:35]} 55. Ke2 {[%emt 0:00:00]} Bg3 {[%emt 0:05:25]} 56. Kf3 {[%emt 0:00:00]} Be1 {[%emt 0:01:57]} 57. Ke3 {[%emt 0:00:00]} Bg3 {[%emt 0:01:17]} 58. Bd8 {[%emt 0:00:00]} Be1 {[%emt 0:00:49]} 59. Kd3 {[%emt 0:00:00]} Bg3 {[%emt 0:00:32]} 60. Bg5 {[%emt 0:00:00]} Be1 {[%emt 0:00:27]} 61. Ke3 {[%emt 0:00:00]} Bb4 {[%emt 0:01:16]} 62. Kd3 {[%emt 0:00:00] Ke5 Ke4+} 1/2-1/2